bitfinex/quotes_BTCUSD_20250711
["timestamp","ask_amount","ask_price","bid_price","bid_amount"]
[1752252189603,0.25486886,117370.0,117360.0,0.03885128]
[1752252189774,0.60338892,117370.0,117360.0,0.05865128]
[1752252189982,0.42527066,117370.0,117360.0,0.04075128]
[1752252190189,0.76527066,117370.0,117360.0,0.03867128]
[1752252190396,0.42527066,117370.0,117360.0,0.01579128]
[1752252190602,1.18499649,117370.0,117360.0,0.01579128]
[1752252191629,1.18599649,117370.0,117360.0,0.01579128]
[1752252191854,6.22379649,117370.0,117360.0,0.01579128]
[1752252192063,6.56022642,117370.0,117360.0,0.01579128]
[1752252192267,6.47479649,117370.0,117360.0,0.01579128]
[1752252192472,6.47479649,117370.0,117360.0,0.00727186]
[1752252192674,6.56812388,117370.0,117360.0,0.00727186]
[1752252192881,6.56812388,117370.0,117340.0,0.02012683]
[1752252192882,1.25173807,117350.0,117340.0,0.02012683]
[1752252193129,1.470488,117350.0,117340.0,0.02012683]
[1752252193563,6.55591793,117350.0,117340.0,0.02012683]
[1752252195175,6.55691793,117350.0,117340.0,0.02012683]
[1752252195411,6.55791793,117350.0,117340.0,0.02012683]
[1752252195618,6.472488,117350.0,117340.0,0.02012683]
[1752252195820,6.203588,117350.0,117340.0,0.02012683]
[1752252196031,1.203588,117350.0,117340.0,0.02012683]
[1752252196229,1.184988,117350.0,117340.0,0.02012683]
[1752252196894,0.61490278,117350.0,117340.0,0.02012683]
[1752252197126,0.74822307,117350.0,117340.0,0.02012683]
[1752252197353,0.7397017,117350.0,117340.0,0.02012683]
[1752252198131,0.74822292,117350.0,117340.0,0.02012683]
[1752252198804,0.7397017,117350.0,117340.0,0.02012683]
[1752252200349,1.17646692,117350.0,117340.0,0.02012683]
[1752252200819,0.74822292,117350.0,117340.0,0.04310683]
[1752252201024,0.57779259,117350.0,117340.0,0.04310683]
[1752252201347,0.75674443,117350.0,117340.0,0.04310683]
[1752252201874,0.74822321,117350.0,117340.0,0.04310683]
[1752252202046,0.74822321,117350.0,117340.0,0.02012683]
[1752252203111,0.80244419,117350.0,117340.0,0.02012683]
[1752252203311,1.23920941,117350.0,117340.0,0.02012683]
[1752252204390,0.80244419,117350.0,117340.0,0.02012683]
[1752252204564,1.23920941,117350.0,117340.0,0.02012683]
[1752252204805,1.23920941,117350.0,117340.0,0.03593982]
[1752252204806,1.18498843,117350.0,117340.0,0.03593982]
[1752252205121,0.45299352,117350.0,117340.0,0.05751982]
[1752252205265,0.44447208,117350.0,117340.0,0.07521982]
[1752252205464,0.42742993,117350.0,117340.0,0.07719982]
[1752252205674,0.57775201,117350.0,117340.0,0.07719982]
[1752252205886,0.57775208,117350.0,117340.0,0.07719982]
[1752252206099,0.57775201,117350.0,117340.0,0.07719982]
[1752252206536,0.56923086,117350.0,117340.0,0.07719982]
[1752252206963,0.57775201,117350.0,117340.0,0.07719982]
[1752252207167,0.56923086,117350.0,117340.0,0.07719982]
[1752252207954,0.62248395,117350.0,117340.0,0.07719982]
[1752252208224,0.57604857,117350.0,117340.0,0.07719982]
[1752252208457,0.5760485,117350.0,117340.0,0.07719982]
[1752252209424,0.58456987,117350.0,117340.0,0.07719982]
[1752252209616,0.5760485,117350.0,117340.0,0.07719982]
[1752252212098,0.57604894,117350.0,117340.0,0.07719982]
[1752252212530,0.58457045,117350.0,117340.0,0.07719982]
[1752252212770,0.84043071,117350.0,117340.0,0.07719982]
[1752252212993,1.1747237,117350.0,117340.0,0.03593982]
[1752252213228,0.73795848,117350.0,117340.0,0.03593982]
[1752252213891,0.73795848,117350.0,117340.0,0.05373982]
[1752252214563,0.73795848,117350.0,117340.0,0.05375055]
[1752252215518,0.73795848,117350.0,117340.0,0.03595055]
[1752252216155,0.73695848,117350.0,117340.0,0.03595055]
[1752252216655,0.73795848,117350.0,117340.0,0.03595055]
[1752252216910,0.73895848,117350.0,117340.0,0.03595055]
[1752252221028,1.18627508,117350.0,117340.0,0.05707055]
[1752252222527,0.73895848,117350.0,117340.0,0.05707055]
[1752252222969,0.41820527,117350.0,117340.0,0.07829055]
[1752252223187,0.56844742,117350.0,117340.0,0.07829055]
[1752252223468,0.52733428,117350.0,117340.0,0.07829055]
[1752252224129,0.53585514,117350.0,117340.0,0.07829055]
[1752252224374,0.55289722,117350.0,117340.0,0.07829055]
[1752252225053,0.52733428,117350.0,117340.0,0.07829055]
[1752252225278,0.53585521,117350.0,117340.0,0.07829055]
[1752252226143,0.54437636,117350.0,117340.0,0.07829055]
[1752252226347,0.72332806,117350.0,117340.0,0.07829055]
[1752252226966,0.55289773,117350.0,117340.0,0.07829055]
[1752252227166,0.56141917,117350.0,117340.0,0.07829055]
[1752252227388,0.56141917,117350.0,117340.0,0.03595055]
[1752252227389,1.26459603,117350.0,117340.0,0.03595055]
[1752252227594,1.51695395,117350.0,117340.0,0.03595055]
[1752252227812,1.45082402,117350.0,117340.0,0.03595055]
[1752252228014,6.45082402,117350.0,117340.0,0.03595055]
[1752252228924,6.45078402,117350.0,117340.0,0.03595055]
[1752252229145,6.45078402,117350.0,117340.0,0.02743049]
[1752252229364,6.53621395,117350.0,117340.0,0.02743049]
[1752252229583,6.525885,117350.0,117340.0,0.01891043]
[1752252230047,6.525885,117350.0,117340.0,0.01039037]
[1752252230271,6.525885,117350.0,117340.0,0.00187031]
[1752252230712,0.54454993,117330.0,117320.0,0.0406]
[1752252230923,0.76313986,117330.0,117320.0,0.04372]
[1752252231192,0.75461755,117330.0,117320.0,0.04372]
[1752252232744,0.75461755,117330.0,117320.0,0.04472]
[1752252233053,0.75461755,117330.0,117320.0,0.04672]
[1752252233280,0.73757184,117330.0,117320.0,0.04672]
[1752252233496,0.74439139,117330.0,117320.0,0.04672]
[1752252233948,0.75291392,117330.0,117320.0,0.04672]
[1752252234439,0.74439139,117330.0,117320.0,0.025]
[1752252235573,0.74439139,117330.0,117320.0,0.04612]
[1752252235793,0.73586864,117330.0,117320.0,0.04612]
[1752252238101,0.73586864,117330.0,117320.0,0.043]
[1752252238313,1.03969629,117330.0,117320.0,0.025]
[1752252238529,1.19201629,117330.0,117320.0,0.025]
[1752252239025,6.54624622,117330.0,117320.0,0.0164787]
[1752252239241,6.54624622,117330.0,117300.0,0.0221]
[1752252239242,0.52753676,117310.0,117300.0,0.0221]
[1752252239465,0.74608669,117310.0,117300.0,0.0221]
[1752252239681,1.18307434,117310.0,117300.0,0.02218482]
[1752252239898,1.47107434,117310.0,117300.0,0.02218482]
[1752252240121,1.47107434,117310.0,117300.0,0.01366267]
[1752252240339,1.47107434,117310.0,117300.0,0.00514052]
[1752252240775,0.17902812,117300.0,117290.0,0.0004]
[1752252240985,0.40610298,117300.0,117290.0,0.0194]
[1752252241196,0.40610298,117300.0,117290.0,0.02252]
[1752252241647,0.45016866,117300.0,117290.0,0.04414]
[1752252241866,0.60033815,117300.0,117290.0,0.04414]
[1752252242284,0.58328866,117300.0,117290.0,0.04414]
[1752252242498,0.59181322,117300.0,117290.0,0.04414]
[1752252242758,0.62554653,117300.0,117290.0,0.05997445]
[1752252242984,0.60849719,117300.0,117290.0,0.05997445]
[1752252243446,0.60317172,117300.0,117290.0,0.05997445]
[1752252243662,0.5128396,117300.0,117290.0,0.05997445]
[1752252244115,0.52136416,117300.0,117290.0,0.05997445]
[1752252244860,0.53841372,117300.0,117290.0,0.05997445]
[1752252245102,0.78582243,117300.0,117290.0,0.05997445]
[1752252245351,0.77729758,117300.0,117290.0,0.01623445]
[1752252245592,0.77729758,117300.0,117290.0,0.03553445]
[1752252245844,0.46514953,117300.0,117290.0,0.06027445]
[1752252246086,0.60679402,117300.0,117290.0,0.06027445]
[1752252246328,0.59826953,117300.0,117290.0,0.06027445]
[1752252246563,0.62384336,117300.0,117290.0,0.06027445]
[1752252246793,0.61531858,117300.0,117290.0,0.06027445]
[1752252247019,0.62384329,117300.0,117290.0,0.06027445]
[1752252247482,0.63236814,117300.0,117290.0,0.06027445]
[1752252247724,0.63236807,117300.0,117290.0,0.06027445]
[1752252247964,0.62384329,117300.0,117290.0,0.06027445]
[1752252248394,0.64089307,117300.0,117290.0,0.06027445]
[1752252248655,0.640893,117300.0,117290.0,0.06027445]
[1752252249493,0.81139656,117300.0,117290.0,0.06027445]
[1752252249714,0.80287149,117300.0,117290.0,0.06027445]
[1752252250158,0.63236851,117300.0,117290.0,0.06027445]
[1752252250314,0.62384358,117300.0,117290.0,0.06027445]
[1752252250490,0.63236851,117300.0,117290.0,0.06027445]
[1752252250922,0.63236843,117300.0,117290.0,0.06027445]
[1752252251145,0.59826953,117300.0,117290.0,0.06027445]
[1752252251748,0.5128396,117300.0,117290.0,0.50787004]
[1752252252103,0.52136416,117300.0,117290.0,0.06027445]
[1752252252303,0.53841365,117300.0,117290.0,0.06027445]
[1752252252703,0.5298888,117300.0,117290.0,0.06027445]
[1752252252980,0.53841358,117300.0,117290.0,0.06027445]
[1752252253301,0.60146885,117300.0,117290.0,0.06027445]
[1752252253510,0.77026901,117300.0,117290.0,0.06027445]
[1752252254263,0.59976596,117300.0,117290.0,0.06027445]
[1752252255292,0.60829096,117300.0,117290.0,0.06027445]
[1752252255703,0.6168161,117300.0,117290.0,0.06027445]
[1752252255946,0.77026966,117300.0,117290.0,0.05825445]
[1752252256264,0.76174473,117300.0,117290.0,0.03463445]
[1752252256470,0.59124139,117300.0,117290.0,0.05869445]
[1752252256594,0.77026944,117300.0,117290.0,0.05869445]
[1752252256798,0.77879458,117300.0,117290.0,0.05869445]
[1752252257203,0.59976646,117300.0,117290.0,0.05869445]
[1752252257854,0.58271617,117300.0,117290.0,0.05869445]
[1752252258056,0.35564168,117300.0,117290.0,0.50629004]
[1752252258210,0.48876168,117300.0,117290.0,0.05869445]
[1752252258430,0.48876168,117300.0,117290.0,0.50629004]
[1752252259170,0.18306726,117300.0,117290.0,0.50629004]
[1752252259543,0.04994726,117300.0,117290.0,0.50629004]
[1752252259754,0.16721636,117310.0,117290.0,0.46889004]
[1752252259956,0.25264622,117310.0,117300.0,0.0379]
[1752252260199,0.42313466,117310.0,117300.0,0.05879445]
[1752252260378,0.41461075,117310.0,117300.0,0.05879445]
[1752252260979,0.85368236,117310.0,117300.0,0.03749445]
[1752252261285,1.19468236,117310.0,117300.0,0.01583445]
[1752252261911,1.19468236,117310.0,117300.0,0.03423445]
[1752252262122,1.19468236,117310.0,117300.0,0.03729445]
[1752252262471,1.19568236,117310.0,117300.0,0.03729445]
[1752252262673,0.74808677,117310.0,117300.0,0.03729445]
[1752252263334,0.74808677,117310.0,117300.0,0.05529445]
[1752252263725,0.60227982,117310.0,117300.0,0.05529445]
[1752252263926,0.60227982,117310.0,117300.0,0.05729445]
[1752252263927,0.77276826,117310.0,117300.0,0.05729445]
[1752252264387,0.60227982,117310.0,117300.0,0.05729445]
[1752252264587,0.61080424,117310.0,117300.0,0.05729445]
[1752252264793,0.60227982,117310.0,117300.0,0.05729445]
[1752252264981,0.60227946,117310.0,117300.0,0.05729445]
[1752252265158,0.61080373,117310.0,117300.0,0.05729445]
[1752252266314,0.78981651,117310.0,117300.0,0.05729445]
[1752252267016,0.60227938,117310.0,117300.0,0.05729445]
[1752252267868,0.61932785,117310.0,117300.0,0.05729445]
[1752252268591,0.60227938,117310.0,117300.0,0.05729445]
[1752252268802,0.45211142,117310.0,117300.0,0.05729445]
[1752252269016,0.60223931,117310.0,117300.0,0.50489004]
[1752252269238,0.60223931,117310.0,117300.0,0.05729445]
[1752252269644,0.58519142,117310.0,117300.0,0.05729445]
[1752252269859,0.59371518,117310.0,117300.0,0.05729445]
[1752252270042,0.61076329,117310.0,117300.0,0.05729445]
[1752252271007,0.61928749,117310.0,117300.0,0.05729445]
[1752252272063,0.59371518,117310.0,117300.0,0.05729445]
[1752252272269,0.45211142,117310.0,117300.0,0.50489004]
[1752252272490,0.002,117310.0,117300.0,0.69244309]
[1752252272689,0.002,117310.0,117300.0,0.69244316]
[1752252273345,0.16711125,117320.0,117300.0,0.50489004]
[1752252273566,0.26106444,117320.0,117310.0,0.04286]
[1752252273773,0.26106436,117320.0,117310.0,0.06069445]
[1752252274432,0.26206436,117320.0,117310.0,0.06069445]
[1752252274639,0.585018,117320.0,117310.0,0.06069445]
[1752252274840,0.584018,117320.0,117310.0,0.06069445]
[1752252275047,0.59454104,117320.0,117310.0,0.06069445]
[1752252275259,0.60306422,117320.0,117310.0,0.06069445]
[1752252275426,0.36750807,117320.0,117310.0,0.50829004]
[1752252275652,0.50058807,117320.0,117310.0,0.51681446]
[1752252275865,0.50058807,117320.0,117310.0,0.6873029]
[1752252276082,0.36750807,117320.0,117310.0,0.50829004]
[1752252276498,0.36750807,117320.0,117310.0,0.06069445]
[1752252277168,0.36750807,117320.0,117310.0,0.06921887]
[1752252277378,0.36750807,117320.0,117310.0,0.06069445]
[1752252278119,0.36750807,117320.0,117310.0,0.32681445]
[1752252279108,0.36750807,117320.0,117310.0,0.50582716]
[1752252279317,0.36750807,117320.0,117310.0,0.96194717]
[1752252279757,0.36850807,117320.0,117310.0,0.97047137]
[1752252279966,0.003,117320.0,117310.0,0.98751955]
[1752252280172,0.003,117320.0,117310.0,0.9789955]
[1752252280600,0.003,117320.0,117310.0,0.32681445]
[1752252280811,0.003,117320.0,117310.0,0.32677445]
[1752252281014,0.003,117320.0,117310.0,0.33529887]
[1752252281226,0.003,117320.0,117310.0,0.32677445]
[1752252282463,0.02546435,117320.0,117310.0,0.32677445]
[1752252282669,0.51042613,117330.0,117310.0,0.30707445]
[1752252282877,0.58748261,117330.0,117310.0,0.30707445]
[1752252283086,0.59600557,117330.0,117310.0,0.30707445]
[1752252283295,0.57895972,117330.0,117310.0,0.30707445]
[1752252283501,0.57043697,117330.0,117320.0,0.02274]
[1752252283708,0.56191444,117330.0,117320.0,0.05915445]
[1752252283913,0.57143697,117330.0,117320.0,0.05915445]
[1752252284320,0.56291436,117330.0,117320.0,0.05915445]
[1752252284525,0.56391436,117330.0,117320.0,0.05915445]
[1752252284731,0.56591436,117330.0,117320.0,0.05915445]
[1752252285411,0.42435198,117330.0,117320.0,0.50675461]
[1752252285626,0.55739198,117330.0,117320.0,0.50675461]
[1752252286041,0.55539198,117330.0,117320.0,0.50675461]
[1752252286287,0.55639198,117330.0,117320.0,0.05915902]
[1752252286520,0.58163689,117330.0,117320.0,0.05915902]
[1752252286973,0.5901592,117330.0,117320.0,0.05915902]
[1752252287184,0.59868173,117330.0,117320.0,0.05915902]
[1752252287398,0.79470949,117330.0,117320.0,0.03857902]
[1752252287616,1.23378277,117330.0,117320.0,0.01583902]
[1752252288245,0.00852318,117320.0,117310.0,0.30742]
[1752252288472,0.00852311,117320.0,117310.0,0.3094]
[1752252288685,0.00852311,117320.0,117310.0,0.32523785]
[1752252288917,0.01704636,117320.0,117310.0,0.32523785]
[1752252289125,0.00852311,117320.0,117310.0,0.32523785]
[1752252289539,0.00952311,117320.0,117310.0,0.32523785]
[1752252290160,0.01052311,117320.0,117310.0,0.32523785]
[1752252291192,0.002,117320.0,117310.0,0.32523785]
[1752252291505,0.002,117320.0,117310.0,0.77283344]
[1752252291829,0.01052304,117320.0,117310.0,0.05915785]
[1752252292076,0.01052304,117320.0,117310.0,0.19215785]
[1752252292503,0.78314708,117330.0,117310.0,0.19215785]
[1752252292905,0.00852304,117320.0,117310.0,0.19215785]
[1752252293141,0.03409302,117320.0,117310.0,0.19215785]
[1752252293313,0.03409302,117320.0,117310.0,0.17355785]
[1752252293511,0.02556955,117320.0,117310.0,0.17355785]
[1752252294102,0.00852304,117320.0,117310.0,0.17355785]
[1752252294319,1.03471523,117330.0,117310.0,0.19175785]
[1752252294486,0.01704629,117320.0,117310.0,0.19175785]
[1752252294681,0.001,117320.0,117310.0,0.19175785]
[1752252294884,0.001,117320.0,117310.0,0.63935344]
[1752252295762,0.001,117320.0,117310.0,0.19175785]
[1752252295903,0.62121039,117330.0,117310.0,0.19175785]
[1752252296129,0.61268736,117330.0,117310.0,0.18881785]
[1752252296332,0.00852304,117320.0,117310.0,0.19175785]
[1752252296518,0.01704629,117320.0,117310.0,0.19175785]
[1752252297526,0.01704622,117320.0,117310.0,0.19175785]
[1752252298706,0.60416498,117330.0,117310.0,0.19175785]
[1752252298926,0.00852304,117320.0,117310.0,0.19175785]
[1752252299128,0.01704622,117320.0,117310.0,0.19175785]
[1752252299338,0.03409302,117320.0,117310.0,0.19175785]
[1752252299523,0.00852333,117320.0,117310.0,0.17357309]
[1752252299790,0.02556955,117320.0,117310.0,0.17357309]
[1752252300213,0.0340931,117320.0,117310.0,0.17357309]
[1752252300424,0.02556955,117320.0,117310.0,0.17357309]
[1752252300631,0.01704622,117320.0,117310.0,0.19187309]
[1752252300843,1.20517499,117330.0,117310.0,0.2679187]
[1752252301058,0.7746259,117330.0,117310.0,0.2679187]
[1752252301273,0.01704644,117320.0,117310.0,0.2679187]
[1752252301486,0.00852311,117320.0,117310.0,0.2679187]
[1752252301687,0.00852304,117320.0,117310.0,0.2679187]
[1752252302534,0.00852311,117320.0,117310.0,0.2679187]
[1752252302746,0.7746259,117330.0,117310.0,0.2679187]
[1752252302959,0.46264231,117330.0,117310.0,0.71257429]
[1752252303208,0.59564195,117330.0,117320.0,0.02214]
[1752252303424,1.19665186,117330.0,117320.0,0.01585309]
[1752252303640,6.3185217,117330.0,117320.0,0.0152657]
[1752252303868,6.75780716,117330.0,117320.0,0.0152657]
[1752252304081,0.65333235,117310.0,117300.0,0.002]
[1752252304284,0.89156228,117310.0,117300.0,0.002]
[1752252305136,0.25252607,117310.0,117300.0,0.00692]
[1752252305349,0.42301503,117310.0,117300.0,0.00692]
[1752252305552,0.41449112,117310.0,117300.0,0.00692]
[1752252305778,0.7459667,117310.0,117300.0,0.00494]
[1752252306202,1.18503816,117310.0,117300.0,0.002]
[1752252306407,1.22363816,117310.0,117300.0,0.002]
[1752252306613,1.47363816,117310.0,117300.0,0.002]
[1752252307294,1.1935625,117310.0,117300.0,0.002]
[1752252307505,1.2330625,117310.0,117300.0,0.002]
[1752252308144,1.2133625,117310.0,117300.0,0.002]
[1752252308366,1.2133625,117310.0,117300.0,0.004]
[1752252308781,0.75449089,117310.0,117300.0,0.0091]
[1752252309007,0.75449089,117310.0,117300.0,0.02632]
[1752252309207,0.75449089,117310.0,117300.0,0.00712]
[1752252310032,0.5840018,117310.0,117300.0,0.0469]
[1752252310447,0.59252614,117310.0,117300.0,0.0469]
[1752252310616,0.5840018,117310.0,117300.0,0.0469]
[1752252310838,0.59252607,117310.0,117300.0,0.0469]
[1752252311585,0.57867495,117310.0,117300.0,0.0469]
[1752252311805,0.58719937,117310.0,117300.0,0.0469]
[1752252312035,0.57867495,117310.0,117300.0,0.0469]
[1752252312540,0.56844684,117310.0,117300.0,0.0469]
[1752252312755,0.7474597,117310.0,117300.0,0.0469]
[1752252313505,0.57697126,117310.0,117300.0,0.0469]
[1752252313732,0.7306256,117310.0,117300.0,0.0469]
[1752252313961,0.7306256,117310.0,117300.0,0.0278]
[1752252314181,1.16117308,117310.0,117300.0,0.004]
[1752252314631,0.82117308,117310.0,117300.0,0.004]
[1752252314965,0.81264881,117310.0,117300.0,0.004]
[1752252315365,0.36505322,117310.0,117300.0,0.004]
[1752252315575,0.81264881,117310.0,117300.0,0.004]
[1752252315977,0.81264881,117310.0,117300.0,0.02776474]
[1752252316177,0.85024881,117310.0,117300.0,0.02776474]
[1752252316579,0.83164881,117310.0,117300.0,0.02776474]
[1752252316971,1.10024881,117310.0,117300.0,0.01924145]
[1752252317377,1.10024881,117310.0,117300.0,0.01071816]
[1752252317873,0.82205322,117310.0,117300.0,0.01071816]
[1752252318105,0.53456456,117310.0,117300.0,0.01383816]
[1752252318329,0.55161296,117310.0,117300.0,0.05403742]
[1752252318527,0.7221014,117310.0,117300.0,0.05403742]
[1752252318685,0.71357742,117310.0,117300.0,0.05403742]
[1752252319131,1.16117301,117310.0,117300.0,0.05403742]
[1752252319286,0.5430881,117310.0,117300.0,0.05403742]
[1752252319662,0.72210125,117310.0,117300.0,0.05403742]
[1752252320462,1.16117286,117310.0,117300.0,0.05403742]
[1752252320694,1.16117286,117310.0,117300.0,0.03533742]
[1752252320900,1.16117286,117310.0,117300.0,0.03333742]
[1752252321306,1.16117286,117310.0,117300.0,0.03334001]
[1752252321732,0.71357727,117310.0,117300.0,0.03334001]
[1752252321938,1.16117286,117310.0,117300.0,0.03334001]
[1752252322154,1.14732204,117310.0,117300.0,0.03334001]
[1752252322318,0.69972645,117310.0,117300.0,0.03334001]
[1752252322535,1.14732204,117310.0,117300.0,0.01484001]
[1752252322729,1.14732204,117310.0,117300.0,0.01172001]
[1752252323097,1.01432204,117310.0,117300.0,0.01172001]
[1752252323305,1.14732204,117310.0,117300.0,0.01172001]
[1752252323753,1.13901144,117310.0,117300.0,0.01172001]
[1752252324194,1.13901144,117310.0,117300.0,0.00319704]
[1752252324195,1.17591144,117310.0,117300.0,0.00319704]
[1752252324608,0.17902798,117300.0,117290.0,0.0004]
[1752252324808,0.38722899,117300.0,117290.0,0.02342]
[1752252325014,0.39575399,117300.0,117290.0,0.02542]
[1752252325829,0.40427913,117300.0,117290.0,0.02542]
[1752252326037,0.10247971,117300.0,117290.0,0.04542]
[1752252326244,0.10247971,117300.0,117290.0,0.45311559]
[1752252326245,0.14152456,117300.0,117290.0,0.45311559]
[1752252326585,0.14152456,117300.0,117290.0,0.00652]
[1752252326799,0.17558496,117300.0,117290.0,0.00652]
[1752252326948,0.16706025,117300.0,117290.0,0.04612]
[1752252327156,0.17558496,117300.0,117290.0,0.04612]
[1752252327362,0.17558489,117300.0,117290.0,0.04612]
[1752252328032,0.15853569,117300.0,117290.0,0.04612]
[1752252328212,0.15857569,117300.0,117290.0,0.04612]
[1752252328410,0.14156449,117300.0,117290.0,0.04612]
[1752252328620,0.15008913,117300.0,117290.0,0.04612]
[1752252328819,0.14156449,117300.0,117290.0,0.04612]
[1752252328973,0.13304,117300.0,117290.0,0.04612]
[1752252329175,0.14156449,117300.0,117290.0,0.04612]
[1752252329388,0.13304,117300.0,117290.0,0.04612]
[1752252329810,0.14156456,117300.0,117290.0,0.04612]
[1752252330660,0.13304,117300.0,117290.0,0.04612]
[1752252330859,0.15861427,117300.0,117290.0,0.04612]
[1752252331102,0.14156456,117300.0,117290.0,0.04612]
[1752252331306,0.15008927,117300.0,117290.0,0.04612]
[1752252331436,0.16683944,117300.0,117290.0,0.04612]
[1752252331876,0.13892319,117300.0,117290.0,0.04612]
[1752252332267,0.11484573,117300.0,117290.0,0.49371559]
[1752252332436,0.11484573,117300.0,117290.0,0.04612]
[1752252332830,0.15827488,117300.0,117290.0,0.04612]
[1752252333048,0.16679937,117300.0,117290.0,0.04612]
[1752252333625,0.15827488,117300.0,117290.0,0.04612]
[1752252334315,0.133,117300.0,117290.0,0.04612]
[1752252334759,0.14152464,117300.0,117290.0,0.12216561]
[1752252334969,0.15857442,117300.0,117290.0,0.12216561]
[1752252335405,0.15857442,117300.0,117290.0,0.04612]
[1752252335652,0.16709942,117300.0,117290.0,0.04612]
[1752252335874,0.64036365,117300.0,117290.0,0.04612]
[1752252336100,0.88777221,117300.0,117290.0,0.0014]
[1752252336301,0.88777221,117300.0,117290.0,0.01725825]
[1752252336302,0.87215806,117300.0,117290.0,0.01725825]
[1752252336715,0.85305806,117300.0,117290.0,0.01725825]
[1752252336924,0.84282963,117300.0,117290.0,0.01725825]
[1752252338188,0.68085143,117300.0,117290.0,0.01725825]
[1752252338731,0.85135441,117300.0,117290.0,0.01725825]
[1752252338938,0.67232629,117300.0,117290.0,0.01725825]
[1752252339147,0.68085143,117300.0,117290.0,0.01725825]
[1752252339360,0.68085143,117300.0,117290.0,0.50787996]
[1752252339361,0.02566864,117300.0,117290.0,0.50787996]
[1752252339557,1.10813235,117310.0,117300.0,0.0196]
[1752252339778,0.02557413,117300.0,117290.0,0.11846561]
[1752252339982,0.02557413,117300.0,117290.0,0.06028334]
[1752252340184,0.02557405,117300.0,117290.0,0.06028334]
[1752252340388,0.02557405,117300.0,117290.0,0.05928334]
[1752252340799,0.0170492,117300.0,117290.0,0.05928334]
[1752252341429,0.0170492,117300.0,117290.0,0.06028334]
[1752252342183,0.0170492,117300.0,117290.0,0.13632895]
[1752252342409,0.02557398,117300.0,117290.0,0.13632895]
[1752252342845,0.03409898,117300.0,117290.0,0.13632895]
[1752252343320,0.02557398,117300.0,117290.0,0.13632895]
[1752252343816,0.03409883,117300.0,117290.0,0.13632895]
[1752252344023,0.02557398,117300.0,117290.0,0.13632895]
[1752252344238,0.03409883,117300.0,117290.0,0.13632895]
[1752252344449,0.0426239,117300.0,117290.0,0.13632895]
[1752252345037,0.65219798,117300.0,117290.0,0.13632895]
[1752252345256,0.65219798,117300.0,117290.0,0.09330895]
[1752252345257,0.71205357,117300.0,117290.0,0.09330895]
[1752252345478,0.71205357,117300.0,117290.0,0.01726334]
[1752252345691,0.7035285,117300.0,117290.0,0.01726334]
[1752252345825,0.7220285,117300.0,117290.0,0.01726334]
[1752252346050,1.04811745,117300.0,117290.0,0.01726334]
[1752252346270,5.9915285,117300.0,117290.0,0.08478578]
[1752252346460,5.9915285,117300.0,117290.0,0.00874017]
[1752252346667,5.9915285,117300.0,117290.0,0.000217]
[1752252346877,5.98321689,117300.0,117290.0,0.00815279]
[1752252347069,5.98321689,117300.0,117290.0,0.000217]
[1752252347070,5.2671213,117300.0,117290.0,0.000217]
[1752252347272,0.23547949,117300.0,117290.0,0.042997]
[1752252347471,0.2440042,117300.0,117290.0,0.11882561]
[1752252347704,0.27129222,117300.0,117290.0,0.11882561]
[1752252348314,0.27981715,117300.0,117290.0,0.11882561]
[1752252348472,0.27781715,117300.0,117290.0,0.11882561]
[1752252348671,0.26929222,117300.0,117290.0,0.11882561]
[1752252348892,0.26929222,117300.0,117290.0,0.11982561]
[1752252349298,0.26929215,117300.0,117290.0,0.04378]
[1752252349500,0.277817,117300.0,117290.0,0.04378]
[1752252349704,0.286342,117300.0,117290.0,0.04378]
[1752252349992,0.27611333,117300.0,117290.0,0.04378]
[1752252350165,0.25906355,117300.0,117290.0,0.04378]
[1752252350812,0.02528824,117300.0,117290.0,0.49137559]
[1752252351013,0.133,117300.0,117290.0,0.49137559]
[1752252351218,0.133,117300.0,117290.0,0.04378]
[1752252351422,0.34852384,117310.0,117300.0,0.038]
[1752252351741,0.34852384,117310.0,117300.0,0.04328]
[1752252351742,0.58400188,117310.0,117300.0,0.04328]
[1752252351892,0.57547775,117310.0,117300.0,0.04328]
[1752252352110,0.01704636,117320.0,117310.0,0.038]
[1752252352299,0.23547629,117320.0,117310.0,0.04016]
[1752252352477,0.24399969,117320.0,117310.0,0.04328]
[1752252352923,0.23547622,117320.0,117310.0,0.04328]
[1752252354070,0.24399955,117320.0,117310.0,0.04328]
[1752252354624,0.24599955,117320.0,117310.0,0.04328]
[1752252355817,0.25452295,117320.0,117310.0,0.04328]
[1752252356022,0.2630465,117320.0,117310.0,0.04328]
[1752252356220,0.70211854,117320.0,117310.0,0.04328]
[1752252356848,0.25452295,117320.0,117310.0,0.04328]
[1752252357059,0.24599955,117320.0,117310.0,0.04328]
[1752252357264,0.25452302,117320.0,117310.0,0.04328]
[1752252358396,0.24599955,117320.0,117310.0,0.04328]
[1752252358602,0.25452302,117320.0,117310.0,0.04328]
[1752252358854,0.25452302,117320.0,117310.0,0.05914707]
[1752252359058,0.24599955,117320.0,117310.0,0.05914707]
[1752252359256,0.25452295,117320.0,117310.0,0.05914707]
[1752252360391,0.26304657,117320.0,117310.0,0.05914707]
[1752252360605,0.71064209,117320.0,117310.0,0.05914707]
[1752252361022,0.70211854,117320.0,117310.0,0.05914707]
[1752252361329,0.71064209,117320.0,117310.0,0.05914707]
[1752252361538,0.70211854,117320.0,117310.0,0.05914707]
[1752252362644,0.71064209,117320.0,117310.0,0.05914707]
[1752252363477,0.70211854,117320.0,117310.0,0.05914707]
[1752252364198,0.71064201,117320.0,117310.0,0.05914707]
[1752252364405,0.70041444,117320.0,117310.0,0.05914707]
[1752252365201,0.70893755,117320.0,117310.0,0.05914707]
[1752252366054,0.70041408,117320.0,117310.0,0.05914707]
[1752252366255,0.70893763,117320.0,117310.0,0.05914707]
[1752252366688,0.70041408,117320.0,117310.0,0.05914707]
[1752252366968,0.70893763,117320.0,117310.0,0.05914707]
[1752252367232,0.24429509,117320.0,117310.0,0.05914707]
[1752252367442,0.08572547,117320.0,117310.0,0.05914707]
[1752252367636,0.23573198,117320.0,117310.0,0.05914707]
[1752252368507,0.22720858,117320.0,117310.0,0.05914707]
[1752252368830,0.2442553,117320.0,117310.0,0.05914707]
[1752252369053,0.24425523,117320.0,117310.0,0.05914707]
[1752252369837,0.66628106,117320.0,117310.0,0.05914707]
[1752252370669,0.69185126,117320.0,117310.0,0.05914707]
[1752252370868,0.68332764,117320.0,117310.0,0.05914707]
[1752252371084,0.69185119,117320.0,117310.0,0.05914707]
[1752252371655,0.68332764,117320.0,117310.0,0.05914707]
[1752252371859,0.87084871,117320.0,117310.0,0.03748707]
[1752252372261,0.87084871,117320.0,117310.0,0.03436707]
[1752252372483,0.87084871,117320.0,117310.0,0.01586707]
[1752252373542,0.86232553,117320.0,117310.0,0.01586707]
[1752252373746,0.86232553,117320.0,117310.0,0.03536707]
[1752252374362,0.85209791,117320.0,117310.0,0.03536707]
[1752252375768,1.3304701,117320.0,117310.0,0.01586707]
[1752252375985,6.3304701,117320.0,117310.0,0.01586707]